bitfinex/quotes_BTCUSD_20260311
["timestamp","ask_amount","ask_price","bid_price","bid_amount"]
[1773242492701,0.04032314,70357.0,70335.0,0.14108755]
[1773242492949,0.04032314,70357.0,70335.0,0.1410879]
[1773242493234,0.04032314,70357.0,70335.0,0.14108825]
[1773242493433,0.04032314,70357.0,70335.0,0.07]
[1773242493637,0.04032314,70357.0,70335.0,0.1410877]
[1773242493832,0.04041829,70355.0,70335.0,0.14108817]
[1773242494042,0.12740116,70350.0,70318.0,0.07130547]
[1773242494238,0.04050867,70348.0,70318.0,0.0713054]
[1773242494390,0.04050867,70346.0,70318.0,0.0713054]
[1773242494591,0.04050867,70346.0,70314.0,0.00148]
[1773242495142,0.04050867,70329.0,70301.0,1e-08]
[1773242495292,0.04050867,70327.0,70301.0,1e-08]
[1773242495489,0.30893471,70319.0,70301.0,1e-08]
[1773242495692,0.04198867,70318.0,70291.0,0.00148]
[1773242495941,0.0384,70315.0,70277.0,0.21247489]
[1773242496155,0.07110656,70317.0,70280.0,0.07134346]
[1773242496156,0.04050867,70300.0,70280.0,0.07134346]
[1773242496462,0.00148,70299.0,70280.0,0.07134346]
[1773242496691,0.04207441,70299.0,70280.0,0.07134346]
[1773242497918,0.07110858,70315.0,70280.0,0.07134346]
[1773242498227,0.04207441,70314.0,70280.0,0.07134346]
[1773242499816,0.0711106,70313.0,70280.0,0.07134346]
[1773242500024,0.0711106,70313.0,70280.0,0.19874462]
[1773242500261,0.00148,70312.0,70280.0,0.07168571]
[1773242500632,0.00148,70312.0,70280.0,0.07134346]
[1773242500877,0.07110932,70315.0,70281.0,0.00040108]
[1773242501510,0.04248336,70314.0,70280.0,0.07134346]
[1773242501693,0.04248336,70314.0,70282.0,0.00148]
[1773242502038,0.04248336,70312.0,70283.0,0.07262095]
[1773242502250,0.04253731,70310.0,70283.0,0.07262095]
[1773242504193,0.04253731,70308.0,70283.0,0.07262095]
[1773242504551,0.07110716,70317.0,70284.0,0.00015862]
[1773242504759,0.04259514,70321.0,70284.0,0.00015862]
[1773242504760,0.00148,70316.0,70284.0,0.00015862]
[1773242505407,0.2107215,70319.0,70284.0,0.00015862]
[1773242505635,0.00148,70318.0,70284.0,0.00015862]
[1773242506017,0.07110757,70316.0,70284.0,0.00015862]
[1773242506221,0.13961606,70318.0,70284.0,0.00015862]
[1773242506421,0.10922591,70331.0,70292.0,0.00014707]
[1773242506621,0.00148,70330.0,70294.0,0.00014707]
[1773242506928,0.00148,70330.0,70291.0,0.29670668]
[1773242506929,0.04264899,70329.0,70291.0,0.29670668]
[1773242507131,0.04264899,70329.0,70292.0,0.00148]
[1773242508419,0.04269896,70327.0,70292.0,0.00148]
[1773242508624,0.04269896,70319.0,70291.0,0.00148]
[1773242508842,0.04269896,70317.0,70291.0,0.00148]
[1773242508982,0.04269896,70317.0,70289.0,0.07113485]
[1773242509185,0.04269896,70317.0,70290.0,0.00148]
[1773242509464,0.07109543,70328.0,70289.0,0.07113485]
[1773242509587,0.04269896,70326.0,70292.0,0.29670668]
[1773242509792,0.04269896,70324.0,70292.0,0.29670668]
[1773242510032,0.00148,70323.0,70292.0,0.29670668]
[1773242510543,0.0711015,70322.0,70293.0,0.07113083]
[1773242510763,0.04361625,70321.0,70293.0,0.07113083]
[1773242510946,0.04361625,70321.0,70294.0,0.00148]
[1773242510947,0.04509625,70321.0,70294.0,0.00148]
[1773242511937,0.04361625,70321.0,70294.0,0.00148]
[1773242512158,0.04361625,70319.0,70294.0,0.00148]
[1773242512556,0.04361625,70319.0,70295.0,0.07112881]
[1773242512557,0.07110554,70318.0,70295.0,0.07112881]
[1773242512766,0.04374645,70317.0,70295.0,0.07112881]
[1773242514316,0.00148,70316.0,70295.0,0.07112881]
[1773242514729,0.11487842,70324.0,70295.0,0.07112881]
[1773242514944,0.17998816,70342.0,70295.0,0.07112881]
[1773242514945,0.00148,70329.0,70301.0,8.465e-05]
[1773242515108,0.00148,70328.0,70303.0,8.465e-05]
[1773242515285,0.00148,70329.0,70303.0,8.465e-05]
[1773242515491,0.00148,70329.0,70302.0,0.00148]
[1773242515894,0.03813311,70331.0,70302.0,0.00148]
[1773242516095,0.00148,70330.0,70303.0,0.00010956]
[1773242516697,0.00148,70330.0,70303.0,0.07123028]
[1773242516908,0.07107522,70351.0,70304.0,8.398e-05]
[1773242517107,0.30661172,70349.0,70304.0,8.398e-05]
[1773242517307,0.04380797,70348.0,70304.0,8.398e-05]
[1773242518374,0.13967588,70348.0,70304.0,8.398e-05]
[1773242518577,0.0438337,70347.0,70304.0,8.398e-05]
[1773242519441,0.0438337,70345.0,70304.0,8.398e-05]
[1773242519613,0.0438337,70345.0,70305.0,0.00148]
[1773242520234,0.04397979,70343.0,70305.0,0.00148]
[1773242520821,0.12740116,70340.0,70303.0,0.07112072]
[1773242521010,0.04397979,70339.0,70303.0,0.07112072]
[1773242521212,0.04397979,70336.0,70300.0,0.00148]
[1773242521470,0.04397979,70334.0,70300.0,0.00148]
[1773242522017,0.04397979,70332.0,70300.0,0.00148]
[1773242522882,0.04399851,70330.0,70300.0,0.00148]
[1773242523287,0.00148,70329.0,70301.0,0.07112274]
[1773242523598,0.00148,70329.0,70301.0,0.07117941]
[1773242523935,0.04399851,70328.0,70301.0,0.07112274]
[1773242524138,0.04399851,70328.0,70302.0,0.00148]
[1773242524347,0.04399851,70328.0,70301.0,0.07112274]
[1773242524584,0.04399851,70328.0,70300.0,0.07260274]
[1773242524767,0.04399851,70328.0,70298.0,0.07112375]
[1773242525580,0.04399851,70328.0,70297.0,0.07112577]
[1773242525581,0.04401417,70326.0,70297.0,0.07112577]
[1773242525747,0.04401417,70326.0,70296.0,0.07112577]
[1773242526188,0.04402685,70324.0,70296.0,0.07112577]
[1773242526385,0.1399436,70327.0,70300.0,0.12740116]
[1773242526609,0.07109129,70333.0,70300.0,0.12740116]
[1773242526789,0.1399436,70334.0,70300.0,0.12740116]
[1773242526988,0.29018936,70356.0,70310.0,0.12740116]
[1773242526989,0.00148,70338.0,70310.0,0.12740116]
[1773242527194,0.00148,70339.0,70311.0,0.00148]
[1773242527399,0.00148,70339.0,70312.0,0.07111161]
[1773242527742,0.00148,70340.0,70312.0,0.07111161]
[1773242527887,0.00148,70340.0,70312.0,0.0720247]
[1773242528292,0.00148,70340.0,70312.0,0.07111161]
[1773242528542,0.00148,70340.0,70313.0,0.00089619]
[1773242529389,0.00148,70341.0,70314.0,0.07110959]
[1773242529594,0.0725627,70341.0,70315.0,0.00089751]
[1773242529961,0.00148,70341.0,70315.0,0.00089751]
[1773242530127,0.00148,70340.0,70315.0,0.00089751]
[1773242531308,0.00148,70340.0,70315.0,0.001]
[1773242531504,0.07256345,70340.0,70316.0,0.07110757]
[1773242531729,1e-08,70348.0,70316.0,0.07110757]
[1773242532024,1e-08,70348.0,70321.0,0.23093544]
[1773242532185,0.07107538,70348.0,70322.0,0.00148]
[1773242532754,1e-08,70348.0,70323.0,0.0009001]
[1773242533720,0.04448538,70345.0,70324.0,0.00148]
[1773242533946,0.04448538,70345.0,70323.0,0.07110049]
[1773242534384,0.04448538,70345.0,70323.0,0.30551353]
[1773242534385,0.00022001,70341.0,70323.0,0.30551353]
[1773242534583,0.04448783,70340.0,70323.0,0.07258049]
[1773242537566,1e-08,70348.0,70324.0,0.2305443]
[1773242538553,0.04492431,70346.0,70325.0,0.00148]
[1773242539530,0.04492431,70346.0,70326.0,0.07109746]
[1773242539731,0.1160016,70346.0,70326.0,0.07109746]
[1773242540246,0.11599112,70346.0,70326.0,0.07109746]
[1773242540984,0.07107725,70348.0,70326.0,0.07109746]
[1773242540985,0.07107538,70348.0,70326.0,0.07109746]
[1773242541395,0.04491383,70347.0,70326.0,0.07109746]
[1773242541611,0.07104593,70379.0,70327.0,7.117e-05]
[1773242541745,0.04491383,70376.0,70331.0,7.117e-05]
[1773242542169,0.04491383,70369.0,70332.0,0.00148]
[1773242542709,0.04491383,70369.0,70328.0,9.178e-05]
[1773242542710,0.04496603,70367.0,70333.0,0.00148]
[1773242543006,0.04496603,70365.0,70333.0,0.00148]
[1773242543150,0.04496603,70363.0,70333.0,0.00148]
[1773242544483,0.00022001,70348.0,70334.0,0.07108937]
[1773242544889,0.00022001,70348.0,70333.0,0.07108937]
[1773242544890,0.07129559,70348.0,70333.0,0.07108937]
[1773242545103,0.04494942,70347.0,70333.0,0.07108937]
[1773242545413,0.00022001,70348.0,70333.0,0.07108937]
[1773242546320,0.07129551,70348.0,70333.0,0.07108937]
[1773242546494,0.07129527,70348.0,70333.0,0.07108937]
[1773242546661,0.04500206,70347.0,70333.0,0.07108937]
[1773242547680,0.04500206,70347.0,70332.0,0.07109093]
[1773242547883,0.04500206,70347.0,70324.0,0.00148]
[1773242548490,0.04498075,70345.0,70311.0,0.07111262]
[1773242548692,0.04498075,70343.0,70312.0,0.00148]
[1773242548888,0.04498075,70343.0,70311.0,0.07111262]
[1773242549088,0.04498075,70343.0,70313.0,0.00148]
[1773242549879,0.04498075,70343.0,70314.0,0.00148]
[1773242550486,0.04495736,70341.0,70315.0,0.07110858]
[1773242550748,0.04495736,70339.0,70309.0,0.17068]
[1773242551076,0.04495736,70339.0,70254.0,0.34161466]
[1773242551077,0.04495736,70339.0,70310.0,0.00148]
[1773242551390,0.04495736,70339.0,70305.0,0.07111869]
[1773242552139,0.03234816,70338.0,70304.0,0.00048]
[1773242552372,0.04537451,70337.0,70304.0,0.07159965]
[1773242552685,0.04537451,70335.0,70304.0,0.07159965]
[1773242553455,0.04537451,70335.0,70304.0,0.00048]
[1773242554203,0.04537451,70335.0,70304.0,0.07159952]
[1773242554406,0.04534491,70333.0,70304.0,0.07159952]
[1773242554607,0.04534491,70331.0,70304.0,0.07159952]
[1773242554999,0.04534491,70331.0,70304.0,0.00048]
[1773242555421,0.04534491,70331.0,70304.0,0.07159967]
[1773242555782,0.04534491,70331.0,70304.0,0.00048]
[1773242556268,0.07257139,70332.0,70300.0,0.0002]
[1773242556269,0.04531342,70329.0,70300.0,0.0002]
[1773242556703,0.07109543,70328.0,70300.0,0.0002]
[1773242556838,0.04531342,70327.0,70300.0,0.0002]
[1773242557865,0.04531342,70327.0,70300.0,5.058e-05]
[1773242558831,0.04531342,70327.0,70256.0,0.03234816]
[1773242558832,0.04528009,70308.0,70262.0,0.29554455]
[1773242559015,0.31243723,70288.0,70263.0,0.0711607]
[1773242559219,0.04676009,70287.0,70258.0,0.0002]
[1773242559975,0.04676009,70287.0,70253.0,0.07165066]
[1773242559976,0.04528009,70279.0,70253.0,0.00048]
[1773242560189,0.31243723,70288.0,70247.0,0.07137715]
[1773242560190,0.04528155,70269.0,70247.0,0.0002]
[1773242560528,0.04528155,70267.0,70247.0,0.0002]
[1773242560687,0.04528155,70264.0,70248.0,0.0711764]
[1773242560889,0.04528155,70262.0,70247.0,0.0002]
[1773242561281,0.04528155,70262.0,70239.0,0.07286506]
[1773242561534,0.04528155,70262.0,70239.0,0.07138486]
[1773242561912,0.04528155,70262.0,70239.0,0.0002]
[1773242562706,0.17263493,70260.0,70239.0,0.0002]
[1773242562901,0.04530206,70258.0,70239.0,0.0002]
[1773242563173,0.04530206,70256.0,70239.0,0.0002]
[1773242564303,0.04530206,70256.0,70232.0,0.0002]
[1773242564503,0.04530206,70256.0,70232.0,0.07139233]
[1773242564725,0.11643882,70253.0,70232.0,0.07139233]
[1773242564925,0.11643882,70253.0,70232.0,0.36007092]
[1773242565141,0.00148,70252.0,70232.0,0.36007092]
[1773242565489,0.00148,70251.0,70232.0,0.36007092]
[1773242566106,0.00148,70251.0,70232.0,0.07139233]
[1773242566277,0.00148,70257.0,70233.0,0.28799262]
[1773242566475,0.04674167,70256.0,70232.0,0.0002]
[1773242566676,0.04674167,70256.0,70233.0,0.0711916]
[1773242566880,0.07116931,70255.0,70232.0,0.07139221]
[1773242567076,0.04526167,70254.0,70232.0,0.07139221]
[1773242567471,0.04526167,70260.0,70233.0,0.28730457]
[1773242567668,0.04674167,70259.0,70233.0,0.28730457]
[1773242568211,0.04674167,70259.0,70233.0,0.28878457]
[1773242569071,0.04521904,70257.0,70234.0,0.07119059]
[1773242572205,0.00148,70256.0,70234.0,0.07119059]
[1773242572418,0.00148,70255.0,70234.0,0.07119059]
[1773242572629,0.00148,70254.0,70234.0,0.07119059]
[1773242572788,0.00148,70253.0,70234.0,0.07119059]
[1773242573403,0.07668096,70253.0,70234.0,0.07119059]
[1773242573868,0.07116323,70261.0,70234.0,0.07119059]
[1773242573869,0.00148,70254.0,70234.0,0.07119059]
[1773242574075,0.00148,70253.0,70234.0,0.07119059]
[1773242575320,0.07520096,70256.0,70234.0,0.07119059]
[1773242575516,0.00170001,70262.0,70234.0,0.07119059]
[1773242578729,0.00022001,70262.0,70234.0,0.07119059]
[1773242579896,0.07137007,70277.0,70234.0,0.07119059]
[1773242580109,0.01046779,70291.0,70234.0,0.07119059]
[1773242580110,0.0726218,70300.0,70261.0,0.1497974]
[1773242580356,0.07347436,70298.0,70271.0,0.0711531]
[1773242580478,0.07347436,70298.0,70272.0,0.00148]
[1773242582376,0.07347436,70298.0,70273.0,0.07115108]
[1773242582731,0.07260425,70300.0,70273.0,0.07115108]
[1773242583381,0.07349864,70299.0,70273.0,0.07115108]
[1773242583900,0.13980373,70300.0,70273.0,0.07115108]
[1773242584196,0.07349864,70299.0,70273.0,0.07115108]
[1773242584781,0.07384294,70298.0,70273.0,0.07115108]
[1773242584989,0.07384294,70298.0,70274.0,0.00148]
[1773242585807,0.07384294,70296.0,70274.0,0.00148]
[1773242586318,0.13849936,70298.0,70275.0,0.07114905]
[1773242586528,0.13849936,70300.0,70275.0,0.07114905]
[1773242586725,0.01124,70301.0,70275.0,0.07114905]
[1773242586929,0.13849936,70310.0,70280.0,0.12733287]
[1773242587130,0.13849936,70310.0,70275.0,0.07114905]
[1773242587131,0.07381622,70309.0,70281.0,0.00148]
[1773242587365,0.07381622,70307.0,70275.0,0.07114905]
[1773242587544,0.07381622,70307.0,70282.0,0.00148]
[1773242587989,0.00022001,70298.0,70275.0,0.07114905]
[1773242588142,0.00022001,70298.0,70276.0,0.00148]
[1773242588356,0.00022001,70298.0,70277.0,0.07114703]
[1773242588556,0.07378706,70297.0,70277.0,0.07114703]
[1773242588880,0.07378706,70297.0,70275.0,0.07114703]
[1773242588881,0.07378706,70295.0,70275.0,0.00148]
[1773242589853,0.07378706,70295.0,70265.0,0.00148]
[1773242590068,0.00148,70296.0,70264.0,0.07115952]
[1773242590069,0.07378706,70293.0,70266.0,0.00148]
[1773242590328,0.07377464,70291.0,70267.0,0.00148]
[1773242590518,0.07377464,70289.0,70268.0,0.07115614]
[1773242590668,0.07377464,70286.0,70267.0,0.07263614]
[1773242590873,0.07377464,70285.0,70267.0,0.072637]
[1773242591096,0.07377464,70285.0,70259.0,0.00148]
[1773242591594,0.07525464,70284.0,70259.0,0.00148]
[1773242591799,0.07377464,70284.0,70259.0,0.00148]
[1773242592284,0.13923635,70286.0,70259.0,0.00148]
[1773242592427,0.34903489,70304.0,70259.0,0.00148]
[1773242592428,0.13923635,70291.0,70261.0,0.14738819]
[1773242592759,0.13934912,70297.0,70261.0,0.14738819]
[1773242592987,0.0737485,70314.0,70280.0,0.12733287]
[1773242593192,0.0737485,70314.0,70281.0,0.00148]
[1773242593316,0.31243723,70321.0,70281.0,0.00148]
[1773242593514,0.38618573,70321.0,70281.0,0.00148]
[1773242593752,0.14484093,70331.0,70291.0,0.1489012]
[1773242594020,0.0737485,70331.0,70292.0,0.00148]
[1773242594378,0.0737485,70331.0,70293.0,0.07113083]
[1773242594687,0.0005263,70333.0,70300.0,0.12733287]
[1773242594909,0.0005263,70333.0,70306.0,0.11325105]
[1773242595109,0.0005263,70333.0,70309.0,0.11325105]
[1773242595277,0.0005263,70333.0,70307.0,0.00148]
[1773242596505,0.0005263,70333.0,70308.0,0.07111566]
[1773242598137,0.00022001,70337.0,70310.0,0.12733287]
[1773242598514,0.00022001,70337.0,70311.0,0.07111262]
[1773242599586,0.00022001,70345.0,70311.0,0.07111262]
[1773242599861,0.0739484,70344.0,70311.0,0.07111262]
[1773242600313,0.0739484,70343.0,70311.0,0.07111262]
[1773242602398,0.00022001,70345.0,70311.0,0.07111262]
[1773242603580,0.07411792,70345.0,70311.0,0.07111262]
[1773242605023,1e-08,70348.0,70320.0,0.12736019]
[1773242605345,0.01124,70358.0,70321.0,0.00148]
[1773242606177,0.01124,70358.0,70330.0,0.12736019]
[1773242606412,0.0738855,70369.0,70340.0,0.12736019]
[1773242606641,0.0738855,70369.0,70341.0,0.00148]
[1773242606822,0.0738855,70369.0,70342.0,0.00148]
[1773242607023,0.0738855,70369.0,70343.0,0.07256027]
[1773242607265,0.07105199,70371.0,70343.0,0.07256027]
[1773242607266,0.07105737,70366.0,70343.0,0.07256027]
[1773242607474,0.07386868,70362.0,70343.0,0.07256027]
[1773242607892,0.30672552,70374.0,70343.0,0.07256027]
[1773242607893,0.07386868,70367.0,70343.0,0.07256027]
[1773242608773,0.07105717,70366.0,70343.0,0.07256027]
[1773242609021,0.07384126,70362.0,70343.0,0.07256027]
[1773242609301,0.07384126,70361.0,70343.0,0.07256027]
[1773242609913,0.00022001,70358.0,70343.0,0.07256027]
[1773242611275,0.0005263,70363.0,70343.0,0.07256027]
[1773242613825,0.28507382,70381.0,70343.0,0.07256027]
[1773242613826,0.04602665,70380.0,70351.0,0.30288117]
[1773242613982,0.04602665,70380.0,70352.0,0.00148]
[1773242614205,0.04602665,70395.0,70370.0,0.12736019]
[1773242614406,0.04650665,70406.0,70380.0,0.12736019]
[1773242614627,0.04602665,70414.0,70382.0,0.04372402]
[1773242614842,0.16951195,70409.0,70370.0,0.32608]
[1773242615041,0.04602665,70408.0,70372.0,0.04372402]
[1773242615258,0.04602665,70406.0,70373.0,0.07104997]
[1773242615898,0.24052761,70409.0,70373.0,0.07104997]
[1773242615899,0.17099195,70409.0,70381.0,0.04372402]
[1773242616102,0.16951195,70409.0,70382.0,0.00148]
[1773242616298,0.000437,70410.0,70383.0,0.04372402]
[1773242616631,0.00148,70425.0,70391.0,0.04372402]
[1773242616801,0.04750665,70425.0,70393.0,0.04372402]
[1773242617336,0.07099852,70424.0,70394.0,0.1147528]
[1773242617468,0.04602665,70423.0,70395.0,0.04372402]
[1773242617673,0.04602665,70423.0,70394.0,0.07102878]
[1773242617876,0.04602665,70423.0,70395.0,0.00148]
[1773242618073,0.04602665,70423.0,70396.0,0.00148]
[1773242618294,0.04602665,70421.0,70396.0,0.00148]
[1773242618498,0.04602665,70419.0,70393.0,0.07102878]
[1773242618704,0.04602665,70419.0,70395.0,0.00148]
[1773242618923,0.00022001,70406.0,70393.0,0.07102878]
[1773242619127,0.00022001,70406.0,70387.0,0.00148]
[1773242619128,0.00022001,70406.0,70370.0,0.12736019]
[1773242619302,0.00022001,70406.0,70373.0,0.04372402]
[1773242619303,0.07101768,70405.0,70373.0,0.04372402]
[1773242619506,0.04750665,70404.0,70373.0,0.04372402]
[1773242620145,0.00148,70403.0,70373.0,0.04372402]
[1773242620523,0.04602665,70404.0,70373.0,0.04372402]
[1773242620722,0.04602665,70404.0,70372.0,0.07105098]
[1773242620723,0.04682922,70403.0,70375.0,0.04885868]
[1773242621120,0.04534922,70403.0,70375.0,0.04885868]
[1773242621316,0.00148,70402.0,70375.0,0.04885868]
[1773242621534,0.00148,70402.0,70377.0,0.04885868]
[1773242621954,0.07249768,70405.0,70377.0,0.04885868]
[1773242622127,0.00148,70405.0,70377.0,0.04885868]
[1773242622737,0.04682922,70405.0,70377.0,0.04885868]
[1773242623420,0.0710197,70403.0,70378.0,0.07104492]
[1773242623624,0.00148,70403.0,70378.0,0.07104492]
[1773242623827,0.00148,70403.0,70379.0,0.04885868]
[1773242624229,0.00148,70403.0,70381.0,0.04885868]
[1773242624396,0.07101871,70404.0,70381.0,0.04885868]
[1773242625034,0.11636793,70404.0,70381.0,0.04885868]
[1773242625236,0.04534922,70403.0,70381.0,0.04885868]
[1773242625447,0.07101965,70404.0,70381.0,0.04885868]
[1773242625667,0.07101965,70404.0,70382.0,0.11989957]
[1773242625994,0.04534922,70403.0,70383.0,0.00148]
[1773242626651,0.00148,70402.0,70383.0,0.00148]
[1773242626848,0.04682922,70402.0,70383.0,0.00133075]
[1773242627514,0.04682922,70402.0,70384.0,0.07103887]
[1773242627515,0.07102171,70401.0,70384.0,0.07103887]
[1773242627717,0.11637093,70401.0,70384.0,0.07103887]
[1773242627936,0.11637093,70401.0,70385.0,0.14091741]
[1773242628145,0.11637093,70401.0,70386.0,0.14091741]
[1773242628344,0.04534922,70400.0,70381.0,0.00148]
[1773242628560,0.04534922,70400.0,70382.0,0.21197186]
[1773242628771,0.04534922,70400.0,70383.0,0.14093158]
[1773242629803,0.04534922,70400.0,70379.0,0.11325105]
[1773242629804,0.04697306,70398.0,70374.0,0.11473105]
[1773242630122,0.04697306,70398.0,70374.0,0.07104849]
[1773242630512,0.04697306,70398.0,70366.0,0.07105663]
[1773242631083,0.04697306,70398.0,70365.0,0.07105704]
[1773242631084,0.04697306,70398.0,70365.0,0.07105805]
[1773242631682,0.04697306,70398.0,70362.0,0.07106016]
[1773242632049,0.07102575,70397.0,70362.0,0.07106016]
[1773242632228,0.03234816,70396.0,70359.0,0.0725441]
[1773242632421,0.00148,70395.0,70358.0,0.01124]
[1773242632672,0.00148,70395.0,70358.0,0.08230498]
[1773242632819,0.04697306,70392.0,70355.0,0.07154615]
[1773242633030,0.03234816,70393.0,70355.0,0.07154615]
[1773242633031,0.04697306,70389.0,70355.0,0.07154615]
[1773242633233,0.04697306,70387.0,70355.0,0.07154615]
[1773242634253,0.04697306,70385.0,70355.0,0.07154615]
[1773242635311,0.07103685,70386.0,70355.0,0.07154615]
[1773242635312,0.04697306,70383.0,70355.0,0.07154615]
[1773242635519,0.04845306,70382.0,70356.0,0.04596331]
[1773242635681,0.04697306,70382.0,70356.0,0.04596331]
[1773242635878,0.04697306,70380.0,70356.0,0.16987658]
[1773242636084,0.04697306,70379.0,70355.0,0.24142273]
[1773242636284,0.07102934,70394.0,70357.0,0.16987658]
[1773242636489,0.07102676,70396.0,70360.0,0.12736019]
[1773242636683,0.00148,70395.0,70363.0,0.04596331]
[1773242637020,0.001,70383.0,70365.0,0.04596331]
[1773242638377,0.001,70383.0,70372.0,0.07]
[1773242639033,0.07204005,70383.0,70372.0,0.06985075]
[1773242640518,0.04697306,70382.0,70365.0,0.07105704]
[1773242640665,0.04697306,70380.0,70365.0,0.07253704]
[1773242640875,0.04697306,70380.0,70365.0,0.07105704]
[1773242641788,0.07104005,70383.0,70365.0,0.07105704]
[1773242641789,0.00148,70382.0,70365.0,0.11702035]
[1773242641980,0.07104005,70383.0,70365.0,0.11802035]
[1773242642183,0.07252005,70383.0,70367.0,0.07105603]
[1773242642379,0.07104005,70383.0,70368.0,0.04596331]
[1773242642605,0.04697306,70397.0,70370.0,0.04596331]
[1773242642805,0.07102303,70400.0,70370.0,0.12736019]
[1773242643022,0.00148,70398.0,70371.0,0.04596331]
[1773242643201,0.00148,70398.0,70373.0,0.04596331]
[1773242643406,0.00148,70398.0,70374.0,0.04596331]
[1773242643606,0.0710197,70404.0,70376.0,0.04596331]
[1773242643806,0.07101836,70405.0,70377.0,0.04596331]
[1773242644011,0.07101629,70407.0,70377.0,0.16987658]
[1773242644229,0.00022001,70401.0,70379.0,0.16987658]
[1773242644439,0.00022001,70401.0,70381.0,0.04596331]
[1773242644640,0.07124186,70401.0,70379.0,0.0710429]
[1773242644860,0.04697306,70400.0,70368.0,0.21244179]
[1773242645156,0.04845306,70399.0,70364.0,0.07125882]
[1773242645356,0.04697306,70389.0,70360.0,0.00148]
[1773242645536,0.12736019,70390.0,70355.0,0.00048]
[1773242645537,0.04697306,70387.0,70358.0,0.00148]
[1773242645913,0.04697306,70387.0,70357.0,0.0002]
[1773242646113,0.04697306,70387.0,70357.0,0.04616331]
[1773242646445,0.04697306,70384.0,70358.0,0.07106512]
[1773242646684,0.00148,70383.0,70365.0,0.001]
[1773242646848,0.00148,70383.0,70365.0,0.00085075]
[1773242647054,0.00148,70384.0,70365.0,0.00185075]
[1773242647255,0.00148,70383.0,70365.0,0.04781406]
[1773242647426,0.07102474,70399.0,70367.0,0.04596331]
[1773242647778,0.00148,70398.0,70367.0,0.04581408]
[1773242648384,0.04697306,70395.0,70365.0,0.07190839]
[1773242648909,0.04697306,70395.0,70365.0,0.07105764]
[1773242650349,0.07102878,70394.0,70365.0,0.07105764]
[1773242650558,0.04697306,70393.0,70365.0,0.07105764]
[1773242651887,0.00148,70392.0,70366.0,0.04596331]
[1773242652289,0.07102878,70394.0,70366.0,0.04596331]
[1773242652490,0.07102878,70395.0,70368.0,0.04596331]
[1773242652890,0.00148,70394.0,70368.0,0.04596331]
[1773242653209,0.11800184,70395.0,70368.0,0.04596331]
[1773242653419,0.00148,70393.0,70368.0,0.04596331]
[1773242653949,0.04697306,70392.0,70368.0,0.04596331]
[1773242654174,0.00148,70399.0,70368.0,0.04596331]
[1773242654413,0.07102272,70400.0,70372.0,0.07105098]
[1773242654614,0.07124273,70401.0,70373.0,0.04744331]
[1773242654615,0.07124175,70401.0,70373.0,0.04744331]
[1773242655998,0.00022001,70406.0,70373.0,0.04744331]
[1773242656189,0.00022001,70406.0,70380.0,0.12736019]
[1773242656355,0.07123728,70406.0,70382.0,0.07104089]
[1773242656555,0.07123728,70406.0,70383.0,0.04596331]
[1773242656982,0.00022001,70406.0,70383.0,0.04596331]
[1773242657190,0.0710151,70408.0,70383.0,0.04596331]
[1773242657423,0.07123386,70409.0,70383.0,0.04596331]
[1773242657424,0.0710139,70409.0,70383.0,0.04596331]
[1773242658161,0.0710139,70409.0,70383.0,0.04581406]
[1773242658367,0.00022001,70413.0,70383.0,0.04581406]
[1773242658569,0.07122986,70413.0,70385.0,0.04596331]
[1773242658951,0.07122969,70413.0,70385.0,0.04596331]
[1773242659499,0.07123027,70413.0,70385.0,0.04596331]
[1773242659704,0.00022001,70413.0,70385.0,0.04596331]
[1773242660233,0.07122974,70413.0,70385.0,0.04581408]
[1773242660417,0.00022001,70413.0,70387.0,0.04331672]
[1773242660612,0.00022001,70413.0,70389.0,0.04331672]
[1773242661675,0.07123045,70413.0,70389.0,0.04331672]
[1773242661824,0.07123045,70413.0,70391.0,0.04331672]
[1773242662030,0.00022001,70413.0,70391.0,0.04331672]
[1773242662562,0.07122984,70413.0,70393.0,0.04331672]
[1773242662928,0.00022001,70413.0,70393.0,0.04331672]
[1773242663376,0.07100155,70421.0,70393.0,0.04331672]
[1773242663583,0.00148,70426.0,70401.0,0.04331672]
[1773242663742,0.02483499,70425.0,70400.0,0.04331672]
[1773242663944,0.02483499,70425.0,70401.0,0.04479672]
[1773242664144,0.02483499,70425.0,70402.0,0.04479672]
[1773242664345,0.00148,70426.0,70404.0,0.04331672]
[1773242664546,0.07099751,70425.0,70405.0,0.07249768]
[1773242665084,0.07099751,70425.0,70406.0,0.00148]
[1773242665281,0.00022001,70413.0,70406.0,0.00148]
[1773242665493,0.00022001,70413.0,70407.0,0.00148]
[1773242666655,0.00022001,70413.0,70407.0,0.07249484]
[1773242667092,0.00022001,70413.0,70407.0,0.11581156]
[1773242668755,0.00022001,70421.0,70408.0,0.04331672]
[1773242670181,0.07122171,70421.0,70408.0,0.04331672]
[1773242670453,0.07122171,70421.0,70409.0,0.00148]
[1773242670655,0.07122171,70421.0,70370.0,0.3262]
[1773242670834,0.02351665,70420.0,70380.0,0.12709758]
[1773242671033,0.02351665,70420.0,70381.0,0.04479672]
[1773242671235,0.00148,70419.0,70381.0,0.04479672]
[1773242671421,0.00148,70418.0,70381.0,0.04479672]
[1773242672117,0.07122171,70421.0,70391.0,0.04331672]
[1773242672322,0.07122171,70421.0,70393.0,0.04331672]
[1773242672528,0.07270171,70421.0,70395.0,0.04331672]
[1773242672840,0.07122171,70421.0,70397.0,0.04331672]
[1773242674679,0.07122156,70421.0,70397.0,0.04331672]
[1773242674899,0.07122156,70421.0,70399.0,0.04331672]
[1773242675330,0.07122156,70421.0,70401.0,0.04331672]
[1773242675792,0.07122156,70421.0,70402.0,0.00148]
[1773242676044,0.07122156,70421.0,70403.0,0.04331672]
[1773242676257,0.07122173,70421.0,70403.0,0.04331672]
[1773242676456,0.00022001,70421.0,70403.0,0.04331672]
[1773242676600,0.07122213,70421.0,70403.0,0.04331672]
[1773242676848,0.07122204,70421.0,70404.0,0.07101869]
[1773242677007,0.29022279,70479.0,70412.0,0.04331672]
[1773242677226,0.29022279,70479.0,70411.0,0.31952378]
[1773242677227,0.0002436,70441.0,70421.0,0.04331672]
[1773242677441,0.0002436,70441.0,70423.0,0.04331672]
[1773242677661,0.07144627,70457.0,70422.0,0.00148]
[1773242677662,0.07144567,70457.0,70431.0,0.04331672]
[1773242677868,0.09671347,70457.0,70432.0,0.04479672]
[1773242678037,0.09671347,70457.0,70431.0,0.00148]
[1773242678038,0.0252678,70456.0,70431.0,0.00148]
[1773242678239,0.0252678,70456.0,70411.0,0.31952378]
[1773242678240,0.12709758,70450.0,70423.0,0.00148]
[1773242678455,0.0267078,70449.0,70419.0,0.00148]
[1773242678880,0.0251424,70447.0,70404.0,0.04331672]
[1773242679176,0.0251424,70447.0,70407.0,0.07101552]
[1773242679378,0.0251424,70447.0,70408.0,0.04331672]
[1773242679759,0.0251424,70447.0,70409.0,0.00148]
[1773242679965,0.0251424,70447.0,70410.0,0.042085]